bitfinex-derivatives/quotes_SOLF0:USTF0_20241229
["timestamp","ask_amount","ask_price","bid_price","bid_amount"]
[1735446253833,2.5748,194.53,194.49,10.99579716]
[1735446254339,4.0939,194.54,194.49,13.57099716]
[1735446255828,4.0939,194.54,194.51,8.15579716]
[1735446256037,2.5746,194.54,194.51,8.15579716]
[1735446256534,2.5745,194.55,194.51,8.15579716]
[1735446262244,2.5745,194.55,194.5,2.5751]
[1735446262545,2.5745,194.55,194.51,8.15579716]
[1735446263147,1.5774,194.56,194.51,8.15579716]
[1735446263330,2.5743,194.57,194.49,2.84]
[1735446263331,1.5747,194.58,194.53,8.15579716]
[1735446264441,9.73049716,194.58,194.49,2.84]
[1735446264844,9.73049716,194.58,194.51,8.15579716]
[1735446265239,2.5744,194.56,194.51,10.73079716]
[1735446265634,9.73049716,194.58,194.51,10.73079716]
[1735446265939,2.5745,194.55,194.51,10.73079716]
[1735446267541,2.5745,194.55,194.51,8.15579716]
[1735446270316,2.5745,194.55,194.51,10.73079716]
[1735446270814,1.5691,194.57,194.51,10.73079716]
[1735446271116,2.5744,194.56,194.51,10.73079716]
[1735446272117,2.5744,194.56,194.51,13.57079716]
[1735446276120,2.5744,194.56,194.51,5.415]
[1735446276315,2.5744,194.56,194.51,13.57079716]
[1735446279521,4.1434,194.57,194.52,2.5748]
[1735446285530,1.5691,194.57,194.51,10.99579716]
[1735446285826,2.5744,194.56,194.52,2.5749]
[1735446286720,1.5691,194.57,194.52,2.5749]
[1735446287019,4.1434,194.57,194.52,2.5749]
[1735446287730,2.5744,194.56,194.52,2.5749]
[1735446288525,4.1434,194.57,194.52,2.5749]
[1735446290132,4.1434,194.57,194.52,10.73069716]
[1735446291536,2.5744,194.56,194.52,10.73069716]
[1735446291728,1.5691,194.57,194.52,10.73069716]
[1735446292232,1.5691,194.57,194.5,2.575]
[1735446292431,8.15579716,194.56,194.51,2.84]
[1735446293436,2.5746,194.54,194.51,2.84]
[1735446297643,2.5745,194.55,194.51,2.84]
[1735446298252,2.5745,194.55,194.51,5.415]
[1735446302550,8.15579716,194.56,194.51,2.84]
[1735446303045,2.5747,194.54,194.51,2.84]
[1735446313057,4.3229,194.6,194.51,10.99579716]
[1735446313260,2.5743,194.57,194.53,2.5746]
[1735446313759,2.5743,194.57,194.51,10.99579716]
[1735446314064,2.5746,194.54,194.51,2.84]
[1735446315759,2.5745,194.55,194.51,2.84]
[1735446316565,12.28089716,194.56,194.51,13.57079716]
[1735446317162,4.1251,194.56,194.51,13.57079716]
[1735446318667,1.4829,194.6,194.51,10.99579716]
[1735446318853,11.24509716,194.6,194.53,8.15579716]
[1735446319657,3.0893,194.6,194.53,8.15579716]
[1735446319853,11.24509716,194.6,194.53,8.15579716]
[1735446320564,3.0893,194.6,194.55,8.15579716]
[1735446321961,3.0893,194.6,194.56,2.5743]
[1735446323868,5.6632,194.6,194.56,2.5743]
[1735446324066,3.0893,194.6,194.55,10.73029716]
[1735446325462,2.574,194.59,194.55,10.73029716]
[1735446326566,3.0893,194.6,194.55,8.15579716]
[1735446327361,3.0893,194.6,194.53,8.15579716]
[1735446327565,8.15579716,194.59,194.53,10.99579716]
[1735446328365,2.5743,194.57,194.53,13.57049716]
[1735446328866,2.5743,194.57,194.53,5.4147]
[1735446329066,2.5743,194.57,194.53,13.57049716]
[1735446331465,2.5744,194.56,194.53,8.15579716]
[1735446332672,8.15579716,194.59,194.53,8.15579716]
[1735446332673,2.5742,194.57,194.53,8.15579716]
[1735446334970,2.5745,194.55,194.51,10.99579716]
[1735446336572,8.15579716,194.55,194.51,2.84]
[1735446337173,2.5747,194.54,194.51,2.84]
[1735446337370,8.15579716,194.55,194.44,32.98781728]
[1735446337571,8.15579716,194.53,194.46,8.15579716]
[1735446337771,2.575,194.51,194.46,8.15579716]
[1735446338369,2.575,194.51,194.46,10.99579716]
[1735446339467,2.575,194.51,194.47,2.5755]
[1735446339668,8.15579716,194.53,194.47,2.5755]
[1735446339869,2.5749,194.52,194.47,2.5755]
[1735446340065,1.5489,194.54,194.5,8.15579716]
[1735446340973,4.1235,194.54,194.5,8.15579716]
[1735446341475,4.1235,194.54,194.49,2.5753]
[1735446341675,4.1235,194.54,194.49,10.73109716]
[1735446346976,4.1235,194.54,194.49,2.5753]
[1735446347179,4.1235,194.54,194.49,10.73109716]
[1735446348884,4.1235,194.54,194.49,2.5753]
[1735446349181,4.1235,194.54,194.49,10.73109716]
[1735446354895,4.1235,194.54,194.49,2.5753]
[1735446355296,1.5489,194.54,194.5,8.15579716]
[1735446356579,1.5489,194.54,194.51,2.575]
[1735446358186,10.72999716,194.57,194.52,2.5748]
[1735446358384,8.15579716,194.57,194.52,2.5748]
[1735446358885,2.5744,194.56,194.52,2.5748]
[1735446359085,8.15579716,194.57,194.52,2.5748]
[1735446359282,8.15579716,194.57,194.51,2.575]
[1735446359480,2.5746,194.55,194.51,2.575]
[1735446359677,8.15579716,194.57,194.51,2.575]
[1735446360488,2.5746,194.54,194.51,2.575]
[1735446362388,2.5748,194.53,194.49,13.57099716]
[1735446362784,8.15579716,194.53,194.44,40.09508644]
[1735446362984,2.5751,194.51,194.47,2.5755]
[1735446364490,2.5751,194.5,194.46,2.5756]
[1735446367591,2.5751,194.5,194.46,10.73139716]
[1735446371086,2.5753,194.49,194.45,2.84]
[1735446371291,2.5753,194.49,194.45,10.99579716]
[1735446372596,2.5753,194.49,194.45,13.57159716]
[1735446372788,8.15579716,194.51,194.44,32.98781728]
[1735446372996,2.5755,194.47,194.45,2.84]
[1735446374110,2.5754,194.48,194.45,2.84]
[1735446375216,2.5754,194.48,194.44,41.14361444]
[1735446378094,2.5754,194.48,194.44,43.71951444]
[1735446378995,2.5754,194.48,194.44,38.40371728]
[1735446379298,2.5754,194.48,194.45,8.15579716]
[1735446379499,2.5754,194.48,194.44,38.40371728]
[1735446379696,2.5754,194.48,194.44,46.55951444]
[1735446386697,2.5754,194.48,194.44,41.14361444]
[1735446386897,8.15579716,194.47,194.38,30.44784795]
[1735446387102,8.15579716,194.45,194.38,41.44364511]
[1735446388297,8.15579716,194.45,194.38,13.01456845]
[1735446388501,2.576,194.44,194.39,2.5766]
[1735446389504,2.576,194.44,194.4,8.15579716]
[1735446391301,2.5757,194.46,194.42,8.15579716]
[1735446391501,1.5452,194.47,194.44,8.15579716]
[1735446392505,4.1207,194.47,194.44,8.15579716]
[1735446397511,1.5452,194.47,194.43,2.576]
[1735446397709,2.5757,194.46,194.43,2.576]
[1735446401116,2.5757,194.46,194.42,10.73199716]
[1735446401519,2.576,194.44,194.42,8.15579716]
[1735446403419,1.5452,194.47,194.42,8.15579716]
[1735446403622,2.5761,194.43,194.42,8.15579716]
[1735446410331,2.5759,194.44,194.42,8.15579716]
[1735446412930,5.7022,194.47,194.43,2.5761]
[1735446414434,3.1266,194.47,194.42,8.15579716]
[1735446414636,2.5757,194.46,194.42,8.15579716]
[1735446415434,2.5757,194.46,194.42,10.73189716]
[1735446416132,5.7022,194.47,194.42,10.73189716]
[1735446420335,3.1266,194.47,194.42,8.15579716]
[1735446420836,2.576,194.44,194.42,8.15579716]
[1735446424268,2.5761,194.43,194.42,8.15579716]
[1735446424465,3.1266,194.47,194.42,8.15579716]
[1735446425168,2.576,194.44,194.42,8.15579716]
[1735446425859,2.576,194.44,194.4,2.5764]
[1735446426058,2.576,194.44,194.39,2.84]
[1735446426059,2.5762,194.43,194.41,8.15579716]
[1735446426455,8.15579716,194.46,194.41,8.15579716]
[1735446427342,2.5762,194.42,194.41,8.15579716]
[1735446431145,2.5762,194.42,194.39,8.15579716]
[1735446431536,2.5764,194.41,194.36,5.417]
[1735446431741,8.15579716,194.43,194.36,10.73279716]
[1735446432848,2.5764,194.41,194.36,10.73279716]
[1735446434655,2.5764,194.41,194.35,2.5771]
[1735446434849,8.15579716,194.43,194.36,8.15579716]
[1735446435459,2.5766,194.4,194.36,8.15579716]
[1735446438046,8.15579716,194.43,194.36,8.15579716]
[1735446438246,2.5763,194.42,194.38,8.15579716]
[1735446438850,7.4946,194.47,194.38,8.15579716]
[1735446439043,2.5761,194.44,194.4,8.15579716]
[1735446440459,2.5761,194.44,194.4,10.73219716]
[1735446442953,8.15579716,194.46,194.4,10.73219716]
[1735446443154,2.5761,194.43,194.4,2.5764]
[1735446454165,2.5762,194.42,194.39,2.5766]
[1735446456367,4.6546,194.47,194.33,28.42907666]
[1735446456368,8.15579716,194.4,194.33,28.42907666]
[1735446456560,8.15579716,194.37,194.33,28.42907666]
[1735446457065,2.5773,194.34,194.33,28.42907666]
[1735446458063,2.84,194.43,194.25,28.42907666]
[1735446458064,8.15579716,194.35,194.25,28.42907666]
[1735446458364,2.5774,194.33,194.28,8.15579716]
[1735446459465,2.5774,194.33,194.28,2.5779]
[1735446459766,2.5774,194.33,194.28,10.73369716]
[1735446461662,2.5774,194.33,194.28,2.5779]
[1735446461857,2.5774,194.33,194.29,8.15579716]
[1735446462264,2.5776,194.32,194.29,8.15579716]
[1735446462467,8.15579716,194.33,194.27,8.15579716]
[1735446462862,2.578,194.29,194.24,2.5786]
[1735446463060,8.15579716,194.31,194.24,8.15579716]
[1735446463464,2.5782,194.27,194.24,8.15579716]
[1735446465171,2.5782,194.27,194.22,5.4188]
[1735446465374,2.5782,194.27,194.24,8.15579716]
[1735446466575,2.5782,194.27,194.22,2.5788]
[1735446466875,2.5782,194.27,194.23,8.15579716]
[1735446467270,2.5781,194.28,194.23,8.15579716]
[1735446477679,2.5781,194.28,194.23,10.73449716]
[1735446480577,2.5779,194.29,194.24,2.5786]
[1735446482092,8.15579716,194.31,194.24,2.5786]
[1735446482280,2.5781,194.28,194.24,2.5786]
[1735446482677,1.5652,194.34,194.25,8.15579716]
[1735446482882,9.72099716,194.34,194.27,8.15579716]
[1735446483395,2.5775,194.33,194.29,2.5778]
[1735446484485,8.15579716,194.32,194.29,2.5778]
[1735446485085,2.5777,194.31,194.27,2.5782]
[1735446486083,8.15579716,194.32,194.26,2.84]
[1735446486287,10.73339716,194.32,194.28,2.578]
[1735446486686,8.15579716,194.32,194.27,8.15579716]
[1735446486986,8.15579716,194.32,194.29,2.5779]
[1735446487885,4.1425,194.34,194.3,2.5777]
[1735446488087,8.15579716,194.33,194.3,2.5777]
[1735446490790,8.15579716,194.33,194.26,2.84]
[1735446490791,2.5776,194.32,194.28,2.578]
[1735446491287,2.5777,194.31,194.27,2.5782]
[1735446494485,2.5777,194.31,194.26,13.57399716]
[1735446495488,2.5777,194.31,194.26,10.73399716]
[1735446496190,2.5777,194.31,194.26,2.5782]
[1735446499296,2.5777,194.31,194.27,2.5782]
[1735446499891,2.5776,194.32,194.27,2.5782]
[1735446500596,2.5776,194.32,194.28,2.5781]
[1735446516315,8.15579716,194.32,194.26,8.15579716]
[1735446516515,2.5777,194.31,194.27,2.5782]
[1735446526822,2.5778,194.3,194.26,2.5783]
[1735446530426,2.5781,194.28,194.25,31.26907666]
[1735446530824,2.5781,194.28,194.25,9.94726916]
[1735446532130,2.5781,194.28,194.25,2.84]
[1735446535627,2.5782,194.27,194.25,2.84]
[1735446536531,2.5782,194.27,194.24,8.15579716]
[1735446536726,2.5782,194.27,194.24,10.99579716]
[1735446541429,2.5782,194.27,194.24,8.15579716]
[1735446544438,8.15579716,194.3,194.24,8.15579716]
[1735446545532,2.5783,194.27,194.24,8.15579716]
[1735446556136,2.5783,194.27,194.23,5.4187]
[1735446559241,2.5783,194.27,194.23,2.84]
[1735446563439,2.5783,194.27,194.23,5.4187]
[1735446568643,2.5783,194.27,194.23,2.5787]
[1735446570349,2.5781,194.28,194.23,2.5787]
[1735446577954,10.73389716,194.28,194.23,2.5787]
[1735446587166,2.5778,194.3,194.22,2.84]
[1735446587367,1.5652,194.34,194.27,8.15579716]
[1735446587573,1.5652,194.34,194.29,8.15579716]
[1735446588371,1.5652,194.34,194.3,2.5777]
[1735446590068,1.5652,194.34,194.29,8.15579716]
[1735446590276,1.5652,194.34,194.31,2.5776]
[1735446592971,1.5652,194.34,194.29,8.15579716]
[1735446593180,8.15579716,194.36,194.34,2.5772]
[1735446593367,3.0639,194.37,194.34,2.5772]
[1735446593972,9.33780798,194.39,194.36,2.5769]
[1735446594574,4.1608,194.4,194.36,2.5769]
[1735446594776,12.31659716,194.4,194.36,2.5769]
[1735446597680,9.74009716,194.4,194.33,2.84]
[1735446597981,9.74009716,194.4,194.35,2.5771]
[1735446598284,2.5766,194.39,194.33,2.84]
[1735446598481,2.5766,194.39,194.35,2.5771]
[1735446605884,2.5766,194.39,194.33,2.84]
[1735446606082,2.5766,194.39,194.34,2.5772]
[1735446606480,8.15579716,194.38,194.34,2.5772]
[1735446607492,8.15579716,194.38,194.33,2.84]
[1735446608486,10.73259716,194.38,194.33,5.4174]
[1735446612592,8.15579716,194.34,194.3,2.5778]
[1735446613093,8.15579716,194.34,194.29,2.84]
[1735446613291,8.15579716,194.32,194.27,1.77006996]
[1735446613490,8.15579716,194.32,194.29,2.84]
[1735446613995,10.73329716,194.32,194.29,2.84]
[1735446615189,10.73329716,194.32,194.27,4.34816996]
[1735446615404,10.73329716,194.32,194.28,2.84]
[1735446615693,2.5777,194.31,194.27,4.34816996]
[1735446615891,2.5777,194.31,194.28,2.84]
[1735446619096,8.15579716,194.3,194.22,34.28487441]
[1735446619299,2.5782,194.28,194.23,13.57449716]
[1735446623419,2.5782,194.28,194.23,2.84]
[1735446623720,2.5783,194.27,194.24,2.84]
[1735446626804,10.73389716,194.28,194.24,2.84]
[1735446630909,2.5782,194.27,194.24,2.84]
[1735446632508,10.73389716,194.28,194.24,2.84]
[1735446634203,10.73389716,194.28,194.23,2.5787]
[1735446634506,8.15579716,194.26,194.21,2.84]
[1735446634910,10.73419716,194.26,194.21,5.4189]
[1735446644714,10.73419716,194.26,194.22,2.5788]
[1735446645619,10.73419716,194.26,194.21,5.419]
[1735446650535,1.5513,194.27,194.21,2.84]
[1735446650731,5.8567,194.35,194.22,8.15579716]
[1735446650927,8.15579716,194.3,194.24,8.15579716]
[1735446652430,8.15579716,194.3,194.26,2.5783]
[1735446654031,8.15579716,194.32,194.28,2.578]
[1735446654932,8.15579716,194.32,194.29,2.5779]
[1735446655331,2.5774,194.33,194.29,2.5779]
[1735446655530,8.15579716,194.32,194.29,2.5779]
[1735446655934,8.15579716,194.32,194.26,2.84]
[1735446656243,8.15579716,194.29,194.26,2.84]
[1735446657537,8.15579716,194.29,194.26,5.4183]
[1735446664533,8.15579716,194.29,194.26,2.84]
[1735446664840,10.73379716,194.29,194.26,2.84]
[1735446669432,2.5778,194.31,194.26,2.84]
[1735446669638,10.73359716,194.31,194.26,2.84]
[1735446669939,10.73359716,194.31,194.26,5.4183]
[1735446671038,2.5776,194.32,194.28,2.578]
[1735446671440,2.5776,194.32,194.28,5.418]
[1735446671742,12.28229716,194.34,194.3,2.5778]
[1735446677137,2.5774,194.33,194.3,2.5778]
[1735446678037,2.5774,194.33,194.29,2.5779]
[1735446678437,9.70499716,194.34,194.23,28.42907666]
[1735446678645,8.15579716,194.3,194.25,2.5785]
[1735446678941,8.15579716,194.3,194.26,2.84]
[1735446679443,8.15579716,194.28,194.26,2.84]
[1735446679839,2.5782,194.27,194.26,2.84]
[1735446680041,2.5782,194.27,194.23,5.4186]
[1735446692056,2.5782,194.27,194.24,8.15579716]
[1735446707763,1.5492,194.34,194.25,2.5783]
[1735446707964,1.5492,194.34,194.28,8.15579716]
[1735446708183,1.5492,194.34,194.3,8.15579716]
[1735446708365,4.1265,194.34,194.3,8.15579716]
[1735446710279,1.5492,194.34,194.3,10.73349716]
[1735446713568,1.5492,194.34,194.28,5.418]
[1735446713863,1.5492,194.34,194.28,13.57379716]
[1735446714364,2.5775,194.33,194.28,5.418]
[1735446714663,8.15579716,194.33,194.24,7.10726916]
[1735446714968,2.5778,194.31,194.26,10.73409716]
[1735446718473,8.15579716,194.33,194.26,10.73409716]
[1735446718668,2.5777,194.31,194.26,10.73409716]
[1735446718967,2.5777,194.31,194.27,2.84]
[1735446721472,2.5778,194.3,194.27,2.84]
[1735446724368,2.5777,194.31,194.27,2.84]
[1735446724569,1.5492,194.34,194.28,10.73369716]
[1735446724869,2.5774,194.33,194.28,8.15579716]
[1735446726475,2.5774,194.33,194.29,2.5778]
[1735446728480,1.5492,194.34,194.29,2.5778]
[1735446728680,2.5776,194.32,194.29,2.5778]
[1735446730470,2.5777,194.31,194.28,10.73379716]
[1735446731376,8.15579716,194.33,194.27,2.84]
[1735446733088,2.5779,194.3,194.27,2.84]
[1735446734288,2.5779,194.3,194.27,10.99579716]
[1735446738795,8.15579716,194.32,194.27,10.99579716]
[1735446739093,2.5779,194.29,194.27,10.99579716]
[1735446739295,8.15579716,194.32,194.25,8.15579716]
[1735446739492,2.5781,194.28,194.26,2.84]
[1735446739690,2.5781,194.28,194.25,10.99579716]
[1735446740593,2.5781,194.28,194.25,8.15579716]
[1735446740788,2.5781,194.28,194.25,10.99579716]
[1735446745500,8.15579716,194.32,194.25,10.99579716]
[1735446745696,2.578,194.29,194.25,13.57419716]
[1735446752097,1.5492,194.34,194.27,2.5782]
[1735446752402,1.5492,194.34,194.27,8.15579716]
[1735446753605,2.5775,194.33,194.29,2.5779]
[1735446756804,2.5775,194.33,194.29,5.4179]
[1735446757401,1.5492,194.34,194.29,5.4179]
[1735446757608,2.5775,194.32,194.29,5.4179]
[1735446759505,2.5778,194.3,194.29,2.84]
[1735446763008,2.5778,194.3,194.27,2.5782]
[1735446763207,2.5778,194.3,194.27,5.4182]
[1735446763507,2.5781,194.28,194.27,2.84]
[1735446767406,2.578,194.29,194.27,2.84]
[1735446773015,2.5781,194.28,194.26,10.99579716]
[1735446773408,2.578,194.29,194.26,10.99579716]
[1735446774109,2.578,194.29,194.26,2.84]
[1735446776218,2.578,194.29,194.26,5.4183]
[1735446777517,2.578,194.29,194.25,8.15579716]
[1735446777817,2.578,194.29,194.25,13.57419716]
[1735446781023,2.5781,194.28,194.25,5.4184]
[1735446781823,8.15579716,194.31,194.26,8.15579716]
[1735446782027,2.5777,194.31,194.28,8.15579716]
[1735446786329,2.5777,194.31,194.27,2.5782]
[1735446786520,2.5777,194.31,194.27,10.73399716]
[1735446788526,2.5778,194.31,194.27,10.73399716]
[1735446793634,2.5778,194.31,194.27,2.5782]
[1735446796535,2.5778,194.31,194.26,8.15579716]
[1735446796831,46.7210056,194.34,194.25,2.84]
[1735446796832,2.5775,194.33,194.29,2.5779]
[1735446797531,2.5775,194.33,194.3,2.84]
[1735446797727,2.5775,194.33,194.3,13.57359716]
[1735446797928,2.5775,194.33,194.3,2.84]
[1735446801037,8.15579716,194.39,194.32,2.5774]
[1735446801240,8.15579716,194.4,194.3,2.84]
[1735446801437,8.15579716,194.38,194.32,8.15579716]
[1735446801938,2.5771,194.35,194.32,8.15579716]
[1735446802837,2.5771,194.35,194.32,10.73329716]
[1735446803237,2.5771,194.35,194.32,8.15579716]
[1735446803437,8.15579716,194.38,194.3,2.84]
[1735446803633,2.5773,194.34,194.31,8.15579716]
[1735446814751,2.5772,194.35,194.31,8.15579716]
[1735446816657,2.5771,194.36,194.31,10.73339716]
[1735446818453,8.15579716,194.38,194.31,10.73339716]
[1735446818656,2.5772,194.35,194.31,10.73339716]
[1735446819255,3.1101,194.41,194.31,8.15579716]
[1735446819456,2.5769,194.37,194.33,2.5774]
[1735446826960,8.15579716,194.39,194.3,2.84]
[1735446827162,2.5772,194.35,194.3,2.84]
[1735446828463,2.5772,194.35,194.31,2.5776]
[1735446829362,2.5772,194.35,194.31,10.73339716]
[1735446829759,8.15579716,194.37,194.31,8.15579716]
[1735446830058,2.577,194.36,194.32,2.5775]
[1735446833455,8.15579716,194.37,194.31,8.15579716]
[1735446833766,2.5772,194.35,194.31,10.73339716]
[1735446839970,8.15579716,194.37,194.32,2.5775]
[1735446839971,2.577,194.36,194.32,2.5775]
[1735446840967,2.5769,194.38,194.33,2.5774]
[1735446841273,2.5769,194.38,194.31,8.15579716]
[1735446842175,2.5769,194.37,194.33,2.5774]
[1735446844173,2.5769,194.37,194.3,2.84]
[1735446844373,2.5769,194.37,194.31,2.84]
[1735446844570,2.5769,194.37,194.31,10.99579716]
[1735446844874,2.5769,194.37,194.33,2.5773]
[1735446848687,2.577,194.36,194.33,2.5773]
[1735446855177,2.577,194.36,194.32,2.5774]
[1735446857094,8.15579716,194.37,194.31,2.84]
[1735446857584,3.1101,194.41,194.31,2.84]
[1735446857780,2.5774,194.34,194.31,2.84]
[1735446886201,2.5771,194.36,194.32,2.5775]
[1735446886499,2.5771,194.36,194.32,10.73329716]
[1735446886701,2.5771,194.36,194.32,8.15579716]
[1735446887000,2.5771,194.36,194.32,10.73329716]
[1735446887702,3.1101,194.41,194.34,8.15579716]
[1735446887903,11.26589716,194.41,194.34,8.15579716]
[1735446888304,2.5768,194.38,194.34,8.15579716]
[1735446889508,2.5768,194.38,194.35,2.577]
[1735446891812,3.1101,194.41,194.34,8.15579716]
[1735446892113,3.1101,194.41,194.36,8.15579716]
[1735446892409,3.1101,194.41,194.36,10.99579716]
[1735446892604,5.6865,194.41,194.37,2.5769]
[1735446892807,3.1101,194.41,194.36,10.99579716]
[1735446893406,2.5766,194.39,194.36,5.417]
[1735446893713,11.26589716,194.41,194.36,2.84]
[1735446894407,2.5765,194.4,194.36,2.84]
[1735446894639,11.26589716,194.41,194.36,2.84]
[1735446895412,2.5767,194.39,194.36,2.84]
[1735446903510,2.5765,194.4,194.36,2.84]
[1735446903716,11.26589716,194.41,194.36,2.84]
[1735446904210,2.5767,194.39,194.36,2.84]
[1735446905719,1.5164,194.41,194.38,8.15579716]
[1735446905925,4.0928,194.41,194.38,8.15579716]
[1735446908521,2.5765,194.4,194.38,8.15579716]
[1735446910820,4.0928,194.41,194.38,8.15579716]
[1735446911525,1.5164,194.41,194.38,8.15579716]
[1735446911715,1.5164,194.41,194.38,10.73239716]
[1735446916623,4.0928,194.41,194.38,10.73239716]
[1735446918418,1.5164,194.41,194.36,2.84]
[1735446918617,4.0927,194.41,194.38,2.5767]
[1735446920125,2.5761,194.43,194.39,10.73229716]
[1735446922329,2.5761,194.43,194.4,2.5765]
[1735446922629,2.576,194.44,194.41,8.15579716]
[1735446922824,1.91215358,194.45,194.42,2.5762]
[1735446923630,4.48805358,194.45,194.42,2.5762]
[1735446923823,2.5759,194.45,194.42,2.5762]
[1735446924533,1.5986,194.46,194.42,2.5762]
[1735446924534,4.1744,194.46,194.42,2.5762]
[1735446924829,4.1744,194.46,194.43,8.15579716]
[1735446925332,2.5756,194.47,194.44,2.5759]
[1735446926233,2.5756,194.47,194.43,8.15579716]
[1735446926529,2.5756,194.47,194.43,10.73189716]
[1735446934032,2.5759,194.44,194.4,2.5764]
[1735446934237,2.5759,194.44,194.41,10.99579716]
[1735446934546,2.5759,194.44,194.41,8.15579716]
[1735446934735,2.5759,194.44,194.42,2.84]
[1735446936533,2.5759,194.44,194.43,8.15579716]
[1735446936834,2.5758,194.45,194.43,8.15579716]
[1735446941337,9.75769716,194.48,194.43,8.15579716]
[1735446941531,2.5758,194.46,194.43,8.15579716]
[1735446942942,2.5755,194.47,194.43,10.73179716]
[1735446948641,1.4764,194.5,194.45,8.15579716]
[1735446948844,2.5755,194.48,194.45,8.15579716]
[1735446951054,1.4764,194.5,194.47,8.15579716]
[1735446951240,1.5641,194.54,194.49,8.15579716]
[1735446951735,2.575,194.52,194.49,8.15579716]
[1735446952142,1.5641,194.54,194.49,8.15579716]
[1735446953444,2.575,194.51,194.49,8.15579716]
[1735446954042,45.53212563,194.55,194.49,8.15579716]
[1735446954243,45.53212563,194.55,194.51,10.73079716]
[1735446954244,2.5746,194.54,194.51,10.73079716]
[1735446954443,2.5746,194.54,194.52,2.84]
[1735446955241,2.5746,194.54,194.53,8.15579716]
[1735446955638,45.53212563,194.55,194.53,8.15579716]
[1735446955946,22.91662825,194.62,194.53,8.15579716]
[1735446956246,1.4843,194.62,194.58,8.15579716]
[1735446956446,2.5737,194.61,194.58,10.99579716]
[1735446956950,4.0579,194.62,194.58,10.99579716]
[1735446957246,8.67100941,194.64,194.6,8.15579716]
[1735446957548,2.5733,194.65,194.62,8.15579716]
[1735446958644,2.573,194.67,194.62,8.15579716]
[1735446959246,2.573,194.67,194.62,10.72929716]
[1735446959645,2.5731,194.66,194.62,10.72929716]
[1735446960046,2.5731,194.66,194.62,8.15579716]
[1735446960746,1.6013,194.68,194.62,8.15579716]
[1735446961051,4.1742,194.68,194.64,8.15579716]
[1735446961247,4.1742,194.68,194.65,2.84]
[1735446961850,2.5729,194.68,194.66,8.15579716]
[1735446963950,4.584,194.76,194.66,8.15579716]
[1735446964150,2.5722,194.73,194.69,8.15579716]
[1735446964350,2.5722,194.73,194.7,2.82]
[1735446965953,2.5722,194.73,194.71,2.82]
[1735446966748,12.73979716,194.76,194.71,10.97579716]
[1735446966749,7.1558,194.76,194.71,10.97579716]
[1735446967549,5.5949,194.76,194.71,10.97579716]
[1735446967755,2.5719,194.75,194.71,10.97579716]
[1735446968357,3.0298,194.81,194.73,8.15579716]
[1735446968553,2.5716,194.78,194.75,8.15579716]
[1735446968753,2.5716,194.78,194.76,2.82]
[1735446969353,2.5713,194.79,194.76,2.82]
[1735446970167,1.4668,194.83,194.77,8.15579716]
[1735446970962,2.5712,194.81,194.77,8.15579716]
[1735446971954,4.0377,194.83,194.79,8.15579716]
[1735446972158,2.5709,194.83,194.79,8.15579716]
[1735446974864,3.0473,194.87,194.79,8.15579716]
[1735446975050,8.15579716,194.83,194.78,2.82]
[1735446975559,8.15579716,194.79,194.72,2.82]
[1735446975765,8.15579716,194.77,194.72,2.82]
[1735446976454,3.1051,194.78,194.73,8.15579716]
[1735446977059,2.5717,194.76,194.73,8.15579716]
[1735446977357,3.1051,194.78,194.73,8.15579716]
[1735446978660,3.1051,194.78,194.72,2.82]
[1735446978861,3.1051,194.78,194.72,10.97579716]
[1735446979459,2.5718,194.76,194.72,10.97579716]
[1735446980453,3.1051,194.78,194.72,10.97579716]
[1735446980662,2.5719,194.75,194.72,10.97579716]
[1735446981660,3.1051,194.78,194.67,1.78672976]
[1735446981661,11.26089716,194.78,194.67,1.78672976]
[1735446981860,3.1051,194.78,194.69,8.15579716]
[1735446982061,8.15579716,194.77,194.69,8.15579716]
[1735446982362,8.15579716,194.77,194.71,8.15579716]
[1735446982761,8.15579716,194.77,194.69,8.15579716]